fUSD/lending_fUSD_20240419
["ID","MTS","AMOUNT","RATE_DAILY","PERIOD"]
[322975829,1713556232566,-153.92612228,0.00013599,2]
[322975830,1713556232575,-7337.95874126,0.00013605,2]
[322975831,1713556232615,-348.06104,0.00013605,2]
[322975832,1713556232627,-338.36,0.00013605,2]
[322975833,1713556232654,-3455.09922445,0.00013605,2]
[322975834,1713556232664,-177.49408055,0.00013605,2]
[322975835,1713556232673,-794.51724399,0.00013688,2]
[322975836,1713556232682,-372693.59963446,0.00013697,2]
[322975837,1713556232694,-911.74074297,0.00013697,2]
[322975845,1713556238409,-172371.77870036,0.00013697,2]
[322975846,1713556238419,-208.21685267,0.00013698,2]
[322975847,1713556238428,-685365.20492665,0.00013698,2]
[322975848,1713556238437,-357.02,0.00013699,2]
[322975849,1713556238446,-3670.5678677,0.00013699,2]
[322975850,1713556238455,-3526.23948373,0.00013699,2]
[322975851,1713556238464,-314.33230979,0.00013699,2]
[322975852,1713556238474,-246.87057532,0.00013699,2]
[322975853,1713556238483,-928.69406033,0.00013699,2]
[322975854,1713556238493,-195.00376366,0.00013699,2]
[322975855,1713556238502,-575.04336535,0.00013699,2]
[322975856,1713556238511,-208.52365513,0.00013699,2]
[322975857,1713556238520,-155.80892173,0.00013699,2]
[322975858,1713556238530,-157.26588533,0.00013699,2]
[322975859,1713556238539,-232.30588039,0.00013699,2]
[322975860,1713556238551,-218.27323393,0.00013699,2]
[322975861,1713556238561,-155.0451187,0.00013699,2]
[322975862,1713556238571,-1408.95584448,0.00013699,2]
[322975863,1713556238581,-202.45573247,0.00013699,2]
[322975864,1713556238591,-310.77104988,0.00013699,2]
[322975865,1713556238601,-247.53366334,0.00013699,2]
[322975866,1713556238610,-450.1966075,0.00013699,2]
[322975867,1713556238619,-1000.0,0.000137,2]
[322975868,1713556238629,-1000.0,0.000137,2]
[322975869,1713556238638,-249.10410252,0.00013705,2]
[322975870,1713556238647,-165.83,0.00013784,2]
[322975871,1713556238657,-1000.0,0.000138,2]
[322975872,1713556238666,-1000.0,0.000138,2]
[322975873,1713556238676,-1342.0,0.000138,2]
[322975874,1713556238685,-1000.0,0.000138,2]
[322975875,1713556238694,-1000.0,0.000138,2]
[322975876,1713556238704,-1000.0,0.000138,2]
[322975877,1713556238712,-1000.0,0.000138,2]
[322975878,1713556238722,-155.0,0.00013825,2]
[322975879,1713556238732,-556.37532454,0.00013827,2]
[322975881,1713556238741,-874.05,0.00013828,2]
[322975883,1713556238750,-75548.376,0.00013828,2]
[322975884,1713556238760,-180.73,0.00013957,2]
[322975885,1713556238769,-150.27,0.00014,2]
[322975886,1713556238778,-150.27,0.00014,2]
[322975887,1713556238787,-1105.56,0.00014116,2]
[322975888,1713556238797,-11479.47900566,0.00014177,2]
[322975889,1713556238810,-165.93,0.00014275,2]
[322975890,1713556238820,-1000.0,0.00014458,2]
[322975891,1713556238829,-909.46,0.00014578,2]
[322975892,1713556238839,-518.0,0.00014658,2]
[322975893,1713556238849,-1120.0,0.00014658,2]
[322975894,1713556238858,-11479.47900566,0.0001475,2]
[322975895,1713556238867,-538.510367,0.00014795,2]
[322975897,1713556238877,-155.0,0.00015,2]
[322975898,1713556238886,-1250.0,0.00015,2]
[322975899,1713556238895,-505.07293441,0.00015045,2]
[322975900,1713556238904,-751.88395077,0.00015046,2]
[322975901,1713556238913,-159.7,0.0001526,2]
[322975902,1713556238922,-11479.47900566,0.00015322,2]
[322975903,1713556238932,-1000.0,0.00015479,2]
[322975904,1713556238941,-1000.0,0.00015479,2]
[322975905,1713556238950,-1000.0,0.00015479,2]
[322975906,1713556238959,-1000.0,0.00015479,2]
[322975907,1713556238968,-1000.0,0.00015479,2]
[322975908,1713556238977,-1000.0,0.00015479,2]
[322975909,1713556238987,-1000.0,0.00015479,2]
[322975910,1713556238995,-1000.0,0.00015479,2]
[322975911,1713556239005,-1000.0,0.00015479,2]
[322975912,1713556239018,-1000.0,0.00015479,2]
[322975913,1713556239027,-1000.0,0.00015479,2]
[322975914,1713556239037,-1000.0,0.00015479,2]
[322975915,1713556239046,-1000.0,0.00015479,2]
[322975916,1713556239061,-163.0,0.00015479,2]
[322975917,1713556239070,-1000.0,0.00015479,2]
[322975918,1713556239079,-1000.0,0.00015479,2]
[322975919,1713556239091,-1000.0,0.00015479,2]
[322975920,1713556239101,-1000.0,0.00015479,2]
[322975921,1713556239110,-1000.0,0.00015479,2]
[322975922,1713556239119,-1000.0,0.00015479,2]
[322975923,1713556239128,-1000.0,0.00015479,2]
[322975924,1713556239137,-1000.0,0.00015479,2]
[322975925,1713556239148,-1000.0,0.00015479,2]
[322975926,1713556239157,-1000.0,0.00015479,2]
[322975927,1713556239167,-1000.0,0.00015479,2]
[322975928,1713556239177,-1000.0,0.00015479,2]
[322975929,1713556239186,-1000.0,0.00015479,2]
[322975930,1713556239195,-1000.0,0.00015479,2]
[322975931,1713556239204,-1000.0,0.00015479,2]
[322975932,1713556239214,-1000.0,0.00015479,2]
[322975933,1713556239225,-1000.0,0.00015479,2]
[322975934,1713556239236,-1000.0,0.00015479,2]
[322975935,1713556239246,-1000.0,0.00015479,2]
[322975936,1713556239256,-1000.0,0.00015479,2]
[322975937,1713556239265,-1000.0,0.00015479,2]
[322975938,1713556239276,-1000.0,0.00015479,2]
[322975939,1713556239284,-1000.0,0.00015479,2]
[322975940,1713556239293,-1000.0,0.00015479,2]
[322975941,1713556239305,-1000.0,0.00015479,2]
[322975942,1713556239315,-1000.0,0.00015479,2]
[322975943,1713556239325,-1000.0,0.00015479,2]
[322975944,1713556239334,-1100.0,0.00015479,2]
[322975945,1713556239343,-155.0,0.000155,2]
[322975946,1713556239352,-150.0,0.000155,2]
[322975947,1713556239362,-250.0,0.000155,2]
[322975948,1713556239371,-678.0,0.000155,2]
[322975949,1713556239380,-792.88,0.00015536,2]
[322975950,1713556239390,-538.510367,0.00015616,2]
[322975951,1713556239399,-1120.0,0.00015617,2]
[322975952,1713556239409,-1589.3459,0.00015633,2]
[322975953,1713556239418,-170.37774008,0.00015639,2]
[322975954,1713556239429,-1113.58385878,0.0001568,2]
[322975955,1713556239438,-40011.4814,0.00015739,2]
[322975956,1713556239447,-100000.0,0.00015739,2]
[322975957,1713556239456,-854.9439,0.00015739,2]
[322975958,1713556239466,-1000.0,0.0001574,2]
[322975959,1713556239475,-6146.0982,0.0001574,2]
[322975960,1713556239484,-200.0,0.0001577,2]
[322975961,1713556239494,-2886.17,0.00015788,2]
[322975962,1713556239503,-150.0,0.00015805,2]
[322975963,1713556239513,-150.27,0.00015828,2]
[322975964,1713556239522,-167.0,0.00015831,2]
[322975965,1713556239532,-2358.86672188,0.00015837,2]
[322975966,1713556239541,-155.0,0.00015837,2]
[322975967,1713556239551,-174.97094333,0.00015838,2]
[322975968,1713556239560,-1298.43503542,0.00015838,2]
[322975969,1713556239570,-491.45044814,0.00015838,2]
[322975970,1713556239579,-259.32312542,0.00015838,2]
[322975971,1713556239589,-201.54399571,0.00015838,2]
[322975972,1713556239598,-875.91071407,0.00015838,2]
[322975973,1713556239608,-155.0,0.00015838,2]
[322975974,1713556239618,-219.26759137,0.00015838,2]
[322975975,1713556239627,-872.30467711,0.00015838,2]
[322975976,1713556239637,-156.44102129,0.00015838,2]
[322975977,1713556239646,-941.19979602,0.00015838,2]
[322975978,1713556239655,-277.09289079,0.00015838,2]
[322975979,1713556239665,-304.94622691,0.00015838,2]
[322975980,1713556239674,-212.28188266,0.00015838,2]
[322975981,1713556239683,-197.79978844,0.00015838,2]
[322975982,1713556239692,-306.57110632,0.00015838,2]
[322975983,1713556239701,-175.54408362,0.00015838,2]
[322975984,1713556239712,-585.1496045,0.00015838,2]
[322975985,1713556239722,-185.70330087,0.00015838,2]
[322975986,1713556239731,-2069.43687102,0.00015838,2]
[322975987,1713556239741,-198.93261115,0.00015838,2]
[322975988,1713556239751,-156.91696538,0.00015838,2]
[322975989,1713556239762,-539.99810698,0.00015838,2]
[322975990,1713556239773,-289.67464184,0.00015838,2]
[322975991,1713556239782,-156.17219899,0.00015838,2]
[322975992,1713556239792,-289.83775221,0.00015838,2]
[322975993,1713556239803,-207.08289993,0.00015838,2]
[322975994,1713556239813,-285.60694043,0.00015838,2]
[322975995,1713556239822,-762.52965112,0.00015838,2]
[322975996,1713556239831,-201.00108587,0.00015838,2]
[322975997,1713556239841,-213.46625267,0.00015838,2]
[322975998,1713556239850,-190.35392142,0.00015838,2]
[322975999,1713556239860,-712.07859983,0.00015838,2]
[322976000,1713556239869,-305.18795743,0.00015838,2]
[322976001,1713556239878,-4511.3219117,0.00015838,2]
[322976002,1713556239887,-155.0,0.00015838,2]
[322976003,1713556239897,-172.2379446,0.00015838,2]
[322976004,1713556239906,-177.89776357,0.00015838,2]
[322976005,1713556239917,-200.54349974,0.00015838,2]
[322976006,1713556239926,-180.93134217,0.00015838,2]
[322976007,1713556239935,-161.52122469,0.00015838,2]
[322976008,1713556239944,-204.01224848,0.00015838,2]
[322976009,1713556239956,-185.69743876,0.00015838,2]
[322976010,1713556239967,-326.37999617,0.00015838,2]
[322976011,1713556239976,-155.25921222,0.00015838,2]
[322976012,1713556239986,-157.62547361,0.00015838,2]
[322976013,1713556239995,-155.11864282,0.00015838,2]
[322976014,1713556240008,-155.47950612,0.00015838,2]
[322976015,1713556240018,-233.18612986,0.00015838,2]
[322976016,1713556240028,-161.5633146,0.00015838,2]
[322976017,1713556240038,-274.29110383,0.00015838,2]
[322976018,1713556240048,-171.16277321,0.00015838,2]
[322976019,1713556240058,-2353.62009514,0.00015838,2]
[322976020,1713556240067,-161.43545051,0.00015838,2]
[322976021,1713556240076,-210.50432826,0.00015838,2]
[322976022,1713556240085,-1510.79961757,0.00015838,2]
[322976023,1713556240099,-6059.27000008,0.00015838,2]
[322976024,1713556240108,-215.79675141,0.00015838,2]
[322976025,1713556240120,-155.0,0.00015838,2]
[322976026,1713556240131,-155.0,0.00015838,2]
[322976027,1713556240141,-1585.03652121,0.00015838,2]
[322976028,1713556240153,-233.03801742,0.00015839,2]
[322976029,1713556240164,-1774.81593737,0.00015839,2]
[322976030,1713556240173,-156.77873877,0.00015839,2]
[322976031,1713556240182,-155.14404831,0.00015839,2]
[322976033,1713556240192,-211.84497049,0.00015839,2]
[322976035,1713556240201,-1081.54694968,0.00015839,5]
[322976036,1713556240213,-164.60549446,0.0001584,2]
[322976038,1713556240222,-117347.54874635,0.0001584,2]
[322976040,1713556240232,-150.0,0.00015845,2]
[322976042,1713556240241,-1000.0,0.00015872,2]
[322976045,1713556240250,-500.0,0.00015872,2]
[322976047,1713556240259,-794.51724399,0.00015888,2]
[322976048,1713556240268,-11479.47900566,0.00015894,2]
[322976049,1713556240278,-192.9581475,0.00015898,2]
[322976050,1713556240288,-12780.96259893,0.00015898,2]
[322976051,1713556240297,-266.1273035,0.00015899,2]
[322976052,1713556240307,-165.26188424,0.00015899,2]
[322976053,1713556240317,-205.7728251,0.00015899,2]
[322976054,1713556240327,-918.0,0.000159,2]
[322976055,1713556240337,-7500.0,0.000159,2]
[322976056,1713556240346,-4446.5312219,0.00015987,2]
[322976057,1713556240356,-26411.7251085,0.00015987,2]
[322976058,1713556240367,-437.12580247,0.0001599,2]
[322976059,1713556240376,-75717.79,0.0001599,2]
[322976060,1713556240385,-1069.28467902,0.00015998,2]
[322976061,1713556240395,-196.89901937,0.00015998,2]
[322976062,1713556240404,-163.88340812,0.00015998,2]
[322976063,1713556240413,-208.69733515,0.00015998,2]
[322976064,1713556240422,-341.29578682,0.00015998,2]
[322976065,1713556240433,-233.63015905,0.00015998,2]
[322976066,1713556240443,-196.16678348,0.00015998,2]
[322976067,1713556240452,-156.95158875,0.00015998,2]
[322976068,1713556240465,-216.84655625,0.00015998,2]
[322976069,1713556240474,-2589.70273245,0.00015998,2]
[322976070,1713556240484,-305.60617377,0.00015998,2]
[322976071,1713556240493,-199.35452674,0.00015998,2]
[322976072,1713556240504,-168.80224381,0.00015998,2]
[322976073,1713556240514,-9683.96699636,0.00015998,2]
[322976074,1713556240524,-2828.72042309,0.00015998,2]
[322976075,1713556240533,-10542.43429174,0.00015999,2]
[322976076,1713556240543,-3935.41167984,0.00015999,2]
[322976077,1713556240556,-62232.42848145,0.00016,2]
[322976078,1713556240565,-155.0,0.00016,2]
[322976079,1713556240575,-12602.86369972,0.00016,2]
[322976080,1713556240585,-699.5904175,0.00016,2]
[322976081,1713556240595,-1040.23535105,0.00016,2]
[322976082,1713556240604,-284.8194735,0.00016,2]
[322976083,1713556240614,-3221.68712299,0.00016,2]
[322976084,1713556240966,-3000.0,0.00016,2]
[322976085,1713556241000,-150.0,0.00016,2]
[322976086,1713556241010,-169.0,0.0001604,2]
[322976087,1713556241022,-1000.0,0.00016064,2]
[322976088,1713556241032,-150.27,0.000161,2]
[322976089,1713556241042,-1128.54866764,0.00016109,2]
[322976090,1713556241054,-42009.0,0.0001611,2]
[322976091,1713556241063,-179448.0,0.0001611,2]
[322976092,1713556241073,-4523.88,0.00016116,2]
[322976093,1713556241082,-575.984594,0.00016165,2]
[322976094,1713556241093,-3455.907565,0.00016165,2]
[322976095,1713556241102,-200.0,0.00016289,2]
[322976096,1713556241111,-174.8907782,0.00016338,2]
[322976097,1713556241120,-207.00479242,0.00016338,2]
[322976098,1713556241129,-185.08224942,0.00016338,2]
[322976099,1713556241138,-10000.0,0.00016338,2]
[322976100,1713556241147,-575.984594,0.00016362,2]
[322976101,1713556241157,-3455.907565,0.00016362,2]
[322976102,1713556241166,-1105.56,0.0001638,2]
[322976103,1713556241176,-800.0,0.00016411,2]
[322976104,1713556241185,-794.51724399,0.00016428,2]
[322976105,1713556241195,-1081.54694967,0.00016437,5]
[322976106,1713556241204,-1081.54694969,0.00016437,5]
[322976107,1713556241213,-10000.0,0.00016438,2]
[322976108,1713556241222,-10000.0,0.00016438,2]
[322976109,1713556241231,-8235.96,0.00016438,2]
[322976110,1713556241241,-500.0,0.00016438,2]
[322976111,1713556241250,-500.0,0.00016438,2]
[322976112,1713556241259,-526.23547378,0.00016438,2]
[322976113,1713556241268,-500.0,0.00016438,2]
[322976114,1713556241277,-500.0,0.00016438,2]
[322976115,1713556241286,-500.0,0.00016438,2]
[322976116,1713556241296,-775.86,0.00016438,2]
[322976117,1713556241308,-500.05,0.00016438,2]
[322976118,1713556241317,-358.13584296,0.00016438,2]
[322976119,1713556241326,-500.0,0.00016438,2]
[322976120,1713556241335,-500.0,0.00016438,2]
[322976121,1713556241344,-500.0,0.00016438,2]
[322976122,1713556241353,-500.0,0.00016438,2]
[322976123,1713556241362,-500.0,0.00016438,2]
[322976124,1713556241373,-500.0,0.00016438,2]
[322976125,1713556241382,-375.24355879,0.00016438,2]
[322976126,1713556241393,-500.0,0.00016438,2]
[322976127,1713556241403,-589.98797431,0.00016438,2]
[322976128,1713556241414,-500.3,0.00016438,2]
[322976129,1713556241425,-524.36,0.00016438,2]
[322976130,1713556241435,-500.0,0.00016438,2]
[322976131,1713556241445,-516.65072114,0.00016438,2]
[322976132,1713556241454,-500.0,0.00016438,2]
[322976133,1713556241463,-500.0,0.00016438,2]
[322976134,1713556241473,-500.0,0.00016438,2]
[322976135,1713556241482,-500.0,0.00016438,2]
[322976136,1713556241492,-500.0,0.00016438,2]
[322976137,1713556241501,-500.0,0.00016438,2]
[322976138,1713556241510,-500.0,0.00016438,2]
[322976139,1713556241519,-500.0,0.00016438,2]
[322976140,1713556241529,-500.0,0.00016438,2]
[322976141,1713556241539,-500.0,0.00016438,2]
[322976142,1713556241551,-500.0,0.00016438,2]
[322976143,1713556241560,-805.65,0.00016438,2]
[322976144,1713556241569,-500.0,0.00016438,2]
[322976145,1713556241579,-500.0,0.00016438,2]
[322976146,1713556241588,-500.0,0.00016438,2]
[322976147,1713556241598,-500.0,0.00016438,2]
[322976148,1713556241607,-656.97,0.00016438,2]
[322976149,1713556241616,-577.04,0.00016438,2]
[322976150,1713556241626,-703.81,0.00016438,2]
[322976151,1713556241635,-504.0,0.00016438,2]
[322976152,1713556241644,-500.0,0.00016438,2]
[322976153,1713556241654,-500.0,0.00016438,2]
[322976154,1713556241663,-500.0,0.00016438,2]
[322976155,1713556241673,-500.0,0.00016438,2]
[322976156,1713556241683,-500.0,0.00016438,2]
[322976157,1713556241692,-500.0,0.00016438,2]
[322976158,1713556241701,-500.0,0.00016438,2]
[322976159,1713556241711,-500.0,0.00016438,2]
[322976160,1713556241721,-500.0,0.00016438,2]
[322976161,1713556241731,-500.0,0.00016438,2]
[322976162,1713556241741,-500.0,0.00016438,2]
[322976163,1713556241751,-500.0,0.00016438,2]
[322976164,1713556241761,-500.0,0.00016438,2]
[322976165,1713556241771,-500.0,0.00016438,2]
[322976166,1713556241781,-500.0,0.00016438,2]
[322976167,1713556241791,-500.0,0.00016438,2]
[322976168,1713556241803,-500.0,0.00016438,2]
[322976169,1713556241812,-500.0,0.00016438,2]
[322976170,1713556241822,-475.17398035,0.00016438,2]
[322976171,1713556241831,-544.31,0.00016438,2]
[322976172,1713556241841,-500.0,0.00016438,2]
[322976173,1713556241850,-500.0,0.00016438,2]
[322976174,1713556241860,-213.57142233,0.00016438,2]
[322976175,1713556241871,-404.64231566,0.00016438,2]
[322976176,1713556241882,-500.0,0.00016438,2]
[322976177,1713556241891,-500.0,0.00016438,2]
[322976178,1713556241900,-500.0,0.00016438,2]
[322976179,1713556241910,-500.0,0.00016438,2]
[322976180,1713556241919,-500.0,0.00016438,2]
[322976181,1713556241929,-500.0,0.00016438,2]
[322976182,1713556241940,-500.0,0.00016438,2]
[322976183,1713556241949,-500.0,0.00016438,2]
[322976184,1713556241959,-500.0,0.00016438,2]
[322976185,1713556241968,-500.0,0.00016438,2]
[322976186,1713556241977,-500.0,0.00016438,2]
[322976187,1713556241986,-500.0,0.00016438,2]
[322976188,1713556241995,-500.0,0.00016438,2]
[322976189,1713556242005,-500.0,0.00016438,2]
[322976190,1713556242017,-500.0,0.00016438,2]
[322976191,1713556242027,-569.27,0.00016438,2]
[322976192,1713556242036,-1111.55,0.00016438,2]
[322976193,1713556242045,-500.0,0.00016438,2]
[322976194,1713556242058,-500.0,0.00016438,2]
[322976195,1713556242067,-500.0,0.00016438,2]
[322976196,1713556242077,-500.0,0.00016438,2]
[322976197,1713556242086,-500.0,0.00016438,2]
[322976198,1713556242097,-500.0,0.00016438,2]
[322976199,1713556242107,-500.0,0.00016438,2]
[322976200,1713556242116,-500.0,0.00016438,2]
[322976201,1713556242126,-500.0,0.00016438,2]
[322976202,1713556242135,-500.0,0.00016438,2]
[322976204,1713556242145,-500.0,0.00016438,2]
[322976205,1713556242155,-500.0,0.00016438,2]
[322976206,1713556242164,-500.0,0.00016438,2]
[322976207,1713556242174,-1000.0,0.00016438,2]
[322976208,1713556242184,-626.82,0.00016438,2]
[322976209,1713556242194,-1023.08,0.00016438,2]
[322976210,1713556242203,-500.0,0.00016438,2]
[322976211,1713556242213,-500.0,0.00016438,2]
[322976212,1713556242224,-500.0,0.00016438,2]
[322976213,1713556242234,-500.0,0.00016438,2]
[322976214,1713556242244,-500.0,0.00016438,2]
[322976215,1713556242256,-500.0,0.00016438,2]
[322976216,1713556242267,-500.0,0.00016438,2]
[322976217,1713556242278,-500.0,0.00016438,2]
[322976218,1713556242288,-871.23,0.00016438,2]
[322976219,1713556242297,-500.0,0.00016438,2]
[322976220,1713556242310,-818.57,0.00016438,2]
[322976221,1713556242320,-225.19461507,0.00016438,2]
[322976222,1713556242329,-704.43,0.00016438,2]
[322976223,1713556242339,-655.24,0.00016438,2]
[322976224,1713556242349,-349.49612757,0.00016438,2]
[322976225,1713556242359,-500.0,0.00016438,2]
[322976226,1713556242368,-500.0,0.00016438,2]
[322976227,1713556242378,-500.0,0.00016438,2]
[322976228,1713556242387,-500.0,0.00016438,2]
[322976229,1713556242396,-500.0,0.00016438,2]
[322976230,1713556242406,-743.48,0.00016438,2]
[322976231,1713556242415,-500.0,0.00016438,2]
[322976232,1713556242426,-500.0,0.00016438,2]
[322976233,1713556242436,-500.0,0.00016438,2]
[322976234,1713556242446,-500.0,0.00016438,2]
[322976235,1713556242457,-500.0,0.00016438,2]
[322976236,1713556242466,-500.0,0.00016438,2]
[322976237,1713556242476,-500.0,0.00016438,2]
[322976238,1713556242486,-534.84,0.00016438,2]
[322976239,1713556242495,-500.0,0.00016438,2]
[322976240,1713556242505,-556.74,0.00016438,2]
[322976241,1713556242514,-500.0,0.00016438,2]
[322976242,1713556242523,-979.53,0.00016438,2]
[322976243,1713556242533,-518.79,0.00016438,2]
[322976244,1713556242542,-517.28,0.00016438,2]
[322976245,1713556242554,-612.1,0.00016438,2]
[322976246,1713556242564,-500.0,0.00016438,2]
[322976247,1713556242573,-500.0,0.00016438,2]
[322976248,1713556242582,-500.0,0.00016438,2]
[322976249,1713556242592,-155.0,0.00016438,2]
[322976250,1713556242602,-647.92,0.00016438,2]
[322976251,1713556242611,-500.0,0.00016438,2]
[322976252,1713556242621,-500.0,0.00016438,2]
[322976253,1713556242630,-500.0,0.00016438,2]
[322976254,1713556242639,-500.0,0.00016438,2]
[322976255,1713556242648,-500.0,0.00016438,2]
[322976256,1713556242658,-500.0,0.00016438,2]
[322976257,1713556242667,-500.0,0.00016438,2]
[322976258,1713556242676,-500.0,0.00016438,2]
[322976259,1713556242686,-667.48,0.00016438,2]
[322976260,1713556242696,-500.0,0.00016438,2]
[322976261,1713556242705,-500.0,0.00016438,2]
[322976262,1713556242714,-500.0,0.00016438,2]
[322976263,1713556242723,-500.0,0.00016438,2]
[322976264,1713556242734,-500.0,0.00016438,2]
[322976265,1713556242745,-500.0,0.00016438,2]
[322976266,1713556242755,-500.0,0.00016438,2]
[322976267,1713556242765,-500.0,0.00016438,2]
[322976268,1713556242774,-155.0,0.00016438,2]
[322976269,1713556242784,-500.0,0.00016438,2]
[322976270,1713556242793,-856.04,0.00016438,2]
[322976271,1713556242804,-500.0,0.00016438,2]
[322976272,1713556242813,-1301.36,0.00016438,2]
[322976273,1713556242823,-500.0,0.00016438,2]
[322976274,1713556242833,-500.0,0.00016438,2]
[322976275,1713556242842,-500.0,0.00016438,2]
[322976276,1713556242852,-500.0,0.00016438,2]
[322976277,1713556242861,-770.58,0.00016438,2]
[322976278,1713556242870,-500.0,0.00016438,2]
[322976279,1713556242879,-500.0,0.00016438,2]
[322976280,1713556242889,-500.0,0.00016438,2]
[322976281,1713556242899,-572.0,0.00016438,2]
[322976282,1713556242908,-500.0,0.00016438,2]
[322976283,1713556242917,-500.0,0.00016438,2]
[322976284,1713556242927,-500.0,0.00016438,2]
[322976285,1713556242937,-500.0,0.00016438,2]
[322976286,1713556242947,-634.66,0.00016438,2]
[322976287,1713556242959,-236.69352119,0.00016438,2]
[322976288,1713556242968,-500.0,0.00016438,2]
[322976289,1713556242978,-500.0,0.00016438,2]
[322976290,1713556242987,-500.0,0.00016438,2]
[322976291,1713556242997,-574.0,0.00016438,2]
[322976292,1713556243007,-178.09020212,0.00016438,2]
[322976293,1713556243019,-500.0,0.00016438,2]
[322976294,1713556243028,-529.7,0.00016438,2]
[322976295,1713556243038,-500.0,0.00016438,2]
[322976296,1713556243047,-500.0,0.00016438,2]
[322976297,1713556243059,-500.0,0.00016438,2]
[322976298,1713556243068,-500.0,0.00016438,2]
[322976299,1713556243077,-500.0,0.00016438,2]
[322976300,1713556243087,-500.0,0.00016438,2]
[322976301,1713556243097,-500.0,0.00016438,2]
[322976302,1713556243107,-500.0,0.00016438,2]
[322976303,1713556243116,-500.0,0.00016438,2]
[322976304,1713556243125,-500.0,0.00016438,2]
[322976305,1713556243135,-588.39,0.00016438,2]
[322976306,1713556243145,-500.0,0.00016438,2]
[322976307,1713556243156,-500.0,0.00016438,2]
[322976308,1713556243167,-620.59430059,0.00016438,2]
[322976309,1713556243176,-500.0,0.00016438,2]
[322976310,1713556243186,-500.0,0.00016438,2]
[322976312,1713556243196,-500.0,0.00016438,2]
[322976313,1713556243205,-605.36,0.00016438,2]
[322976314,1713556243216,-500.0,0.00016438,2]
[322976315,1713556243226,-500.0,0.00016438,2]
[322976316,1713556243236,-500.0,0.00016438,2]
[322976317,1713556243245,-500.0,0.00016438,2]
[322976318,1713556243255,-500.0,0.00016438,2]
[322976319,1713556243266,-500.0,0.00016438,2]
[322976320,1713556243275,-500.0,0.00016438,2]
[322976321,1713556243285,-500.0,0.00016438,2]
[322976322,1713556243295,-500.0,0.00016438,2]
[322976323,1713556243306,-500.0,0.00016438,2]
[322976324,1713556243315,-500.0,0.00016438,2]
[322976325,1713556243324,-500.0,0.00016438,2]
[322976326,1713556243334,-500.0,0.00016438,2]
[322976327,1713556243347,-500.0,0.00016438,2]
[322976328,1713556243356,-500.0,0.00016438,2]
[322976329,1713556243366,-500.0,0.00016438,2]
[322976330,1713556243375,-862.12,0.00016438,2]
[322976331,1713556243384,-500.0,0.00016438,2]
[322976332,1713556243394,-848.83,0.00016438,2]
[322976333,1713556243404,-500.0,0.00016438,2]
[322976334,1713556243496,-500.0,0.00016438,2]
[322976335,1713556243505,-500.0,0.00016438,2]
[322976336,1713556243514,-500.0,0.00016438,2]
[322976337,1713556243523,-533.92,0.00016438,2]
[322976338,1713556243533,-500.0,0.00016438,2]
[322976339,1713556243542,-500.0,0.00016438,2]
[322976340,1713556243552,-648.19,0.00016438,2]
[322976341,1713556243562,-500.0,0.00016438,2]
[322976342,1713556243571,-700.55,0.00016438,2]
[322976343,1713556243580,-500.0,0.00016438,2]
[322976344,1713556243590,-1078.38,0.00016438,2]
[322976345,1713556243599,-669.49,0.00016438,2]
[322976346,1713556243608,-500.0,0.00016438,2]
[322976347,1713556243617,-500.0,0.00016438,2]
[322976348,1713556243626,-500.0,0.00016438,2]